Workbook

Sheet 标准
E1: 坦克 | I1: 法师/游侠 | L1: 牧师 | O1: BOSS | R1: 小怪 | U1: 精英
A2: 等级 | B2: 成长率 | C2: 血攻比 | E2: 生命 | F2: 攻击 | I2: 生命 | J2: 攻击 | L2: 生命 | M2: 攻击 | O2: 生命 | P2: 攻击 | R2: 生命 | S2: 攻击 | U2: 生命 | V2: 攻击 | AA2: HP | AB2: 攻击
A3: 1 | C3: =VLOOKUP(A3,Y$25:Z$31,2) -> 20 | E3: =ROUND(AB$8*F3*$C3,0) -> 500 | F3: =AA8 -> 15 | I3: =ROUND(AB$9*J3*$C3,0) -> 300 | J3: =AA9 -> 25 | L3: =ROUND(AB$10*M3*$C3,0) -> 400 | M3: =AA10 -> 20 | O3: =ROUND(AB$13*P3*$C3,0) -> 2000 | P3: =AA13 -> 35 | R3: =ROUND(AB$14*S3*$C3,0) -> 60 | S3: =AA14 -> 10 | U3: =ROUND(AB$15*V3*$C3,0) -> 1100 | V3: =AA15 -> 20
A4: 2 | B4: 1.1 | C4: 20 | E4: =ROUND(AB$8*F4*$C4,0) -> 567 | F4: =ROUND(F$3*$B4,0) -> 17 | G4: =E4/E$3 -> 1.134 | I4: 336 | J4: =ROUND(J$3*$B4,0) -> 28 | L4: 440 | M4: =ROUND(M$3*$B4,0) -> 22 | N4: =O4/O$3 -> 1.1145 | O4: 2229 | P4: =ROUND(P$3*$B4,0) -> 39 | Q4: =P4/P$3 -> 1.114285714 | R4: =ROUND(AB$14*S4*$C4,0) -> 66 | S4: =ROUND(S$3*$B4,0) -> 11 | U4: =ROUND(AB$15*V4*$C4,0) -> 1210 | V4: =ROUND(V$3*$B4,0) -> 22 | AA4: 200 | AB4: 10
A5: 3 | B5: 1.2 | C5: 20 | E5: 600 | F5: =ROUND(F$3*$B5,0) -> 18 | G5: =E5/E$3 -> 1.2 | I5: 360 | J5: =ROUND(J$3*$B5,0) -> 30 | L5: 480 | M5: =ROUND(M$3*$B5,0) -> 24 | N5: =O5/O$3 -> 1.2 | O5: 2400 | P5: =ROUND(P$3*$B5,0) -> 42 | Q5: =P5/P$3 -> 1.2 | R5: 72 | S5: =ROUND(S$3*$B5,0) -> 12 | U5: 1320 | V5: =ROUND(V$3*$B5,0) -> 24
A6: 4 | B6: 1.3 | C6: 20 | E6: 667 | F6: 20 | G6: 1.334 | I6: 396 | J6: 33 | L6: 520 | M6: 26 | N6: 1.3145 | O6: 2629 | P6: 46 | Q6: 1.314285714 | R6: 78 | S6: 13 | U6: 1430 | V6: 26 | Z6: 20 | AA6: 1
A7: 5 | B7: 1.4 | C7: 20 | E7: 700 | F7: 21 | G7: 1.4 | I7: 420 | J7: 35 | L7: 560 | M7: 28 | N7: 1.4 | O7: 2800 | P7: 49 | Q7: 1.4 | R7: 84 | S7: 14 | U7: 1540 | V7: 28 | Z7: HP | AA7: ATK
A8: 6 | B8: 1.5 | C8: 20 | E8: 767 | F8: 23 | G8: 1.534 | I8: 456 | J8: 38 | L8: 600 | M8: 30 | N8: 1.5145 | O8: 3029 | P8: 53 | Q8: 1.514285714 | R8: 90 | S8: 15 | U8: 1650 | V8: 30 | Y8: 坦克 | Z8: 25 | AA8: 15 | AB8: =Z8/AA8 -> 1.666666667
A9: 7 | B9: 1.6 | C9: 20 | E9: 800 | F9: 24 | G9: 1.6 | I9: 480 | J9: 40 | L9: 640 | M9: 32 | N9: 1.6 | O9: 3200 | P9: 56 | Q9: 1.6 | R9: 96 | S9: 16 | U9: 1760 | V9: 32 | Y9: 法师 | Z9: 15 | AA9: 25 | AB9: =Z9/AA9 -> 0.6
A10: 8 | B10: 1.7 | C10: 20 | E10: 867 | F10: 26 | G10: 1.734 | I10: 516 | J10: 43 | L10: 680 | M10: 34 | N10: 1.7145 | O10: 3429 | P10: 60 | Q10: 1.714285714 | R10: 102 | S10: 17 | U10: 1870 | V10: 34 | Y10: 牧师 | Z10: 20 | AA10: 20 | AB10: 1
A11: 9 | B11: 1.8 | C11: 20 | E11: 900 | F11: 27 | G11: 1.8 | I11: 540 | J11: 45 | L11: 720 | M11: 36 | N11: 1.8 | O11: 3600 | P11: 63 | Q11: 1.8 | R11: 108 | S11: 18 | U11: 1980 | V11: 36
A12: 10 | B12: 1.9 | C12: 20 | E12: 967 | F12: 29 | G12: 1.934 | I12: 576 | J12: 48 | L12: 760 | M12: 38 | N12: 1.9145 | O12: 3829 | P12: 67 | Q12: 1.914285714 | R12: 114 | S12: 19 | U12: 2090 | V12: 38
A13: 11 | B13: 2 | C13: 20 | E13: 1000 | F13: 30 | G13: 2 | I13: 600 | J13: 50 | L13: 800 | M13: 40 | N13: 2 | O13: 4000 | P13: 70 | Q13: 2 | R13: 120 | S13: 20 | U13: 2200 | V13: 40 | Y13: BOSS | Z13: 100 | AA13: 35 | AB13: =Z13/AA13 -> 2.857142857
A14: 12 | B14: 2.1 | C14: 20 | E14: 1067 | F14: 32 | G14: 2.134 | I14: 636 | J14: 53 | L14: 840 | M14: 42 | N14: 2.1145 | O14: 4229 | P14: 74 | Q14: 2.114285714 | R14: 126 | S14: 21 | U14: 2310 | V14: 42 | Y14: 小怪×10 | Z14: 3 | AA14: 10 | AB14: =Z14/AA14 -> 0.3
A15: 13 | B15: 2.2 | C15: 20 | E15: 1100 | F15: 33 | G15: 2.2 | I15: 660 | J15: 55 | L15: 880 | M15: 44 | N15: 2.2 | O15: 4400 | P15: 77 | Q15: 2.2 | R15: 132 | S15: 22 | U15: 2420 | V15: 44 | Y15: 精英×2 | Z15: 55 | AA15: 20 | AB15: 2.75
A16: 14 | B16: 2.3 | C16: 20 | E16: 1167 | F16: 35 | G16: 2.334 | I16: 696 | J16: 58 | L16: 920 | M16: 46 | N16: 2.3145 | O16: 4629 | P16: 81 | Q16: 2.314285714 | R16: 138 | S16: 23 | U16: 2530 | V16: 46
A17: 15 | B17: 2.4 | C17: 20 | E17: 1200 | F17: 36 | G17: 2.4 | I17: 720 | J17: 60 | L17: 960 | M17: 48 | N17: 2.4 | O17: 4800 | P17: 84 | Q17: 2.4 | R17: 144 | S17: 24 | U17: 2640 | V17: 48
A18: 16 | B18: 2.5 | C18: 20 | E18: 1267 | F18: 38 | G18: 2.534 | I18: 756 | J18: 63 | L18: 1000 | M18: 50 | N18: 2.5145 | O18: 5029 | P18: 88 | Q18: 2.514285714 | R18: 150 | S18: 25 | U18: 2750 | V18: 50
A19: 17 | B19: 2.6 | C19: 20 | E19: 1300 | F19: 39 | G19: 2.6 | I19: 780 | J19: 65 | L19: 1040 | M19: 52 | N19: 2.6 | O19: 5200 | P19: 91 | Q19: 2.6 | R19: 156 | S19: 26 | U19: 2860 | V19: 52
A20: 18 | B20: 2.7 | C20: 20 | E20: 1367 | F20: 41 | G20: 2.734 | I20: 816 | J20: 68 | L20: 1080 | M20: 54 | N20: 2.7145 | O20: 5429 | P20: 95 | Q20: 2.714285714 | R20: 162 | S20: 27 | U20: 2970 | V20: 54
A21: 19 | B21: 2.8 | C21: 20 | E21: 1400 | F21: 42 | G21: 2.8 | I21: 840 | J21: 70 | L21: 1120 | M21: 56 | N21: 2.8 | O21: 5600 | P21: 98 | Q21: 2.8 | R21: 168 | S21: 28 | U21: 3080 | V21: 56
A22: 20 | B22: 2.9 | C22: 20 | E22: 1467 | F22: 44 | G22: 2.934 | I22: 876 | J22: 73 | L22: 1160 | M22: 58 | N22: 2.9145 | O22: 5829 | P22: 102 | Q22: 2.914285714 | R22: 174 | S22: 29 | U22: 3190 | V22: 58
A23: 21 | B23: 3 | C23: 20 | E23: 1500 | F23: 45 | G23: 3 | I23: 900 | J23: 75 | L23: 1200 | M23: 60 | N23: 3 | O23: 6000 | P23: 105 | Q23: 3 | R23: 180 | S23: 30 | U23: 3300 | V23: 60
A24: 22 | B24: 3.1 | C24: 20 | E24: 1567 | F24: 47 | G24: 3.134 | I24: 936 | J24: 78 | L24: 1240 | M24: 62 | N24: 3.1145 | O24: 6229 | P24: 109 | Q24: 3.114285714 | R24: 186 | S24: 31 | U24: 3410 | V24: 62 | X24: 技能等级 | Y24: 等级 | Z24: 血攻比 | AC24: 普攻 | AD24: 技能（10CD） | AF24: 技能CD | AG24: 6
A25: 23 | B25: 3.2 | C25: 20 | E25: 1600 | F25: 48 | G25: 3.2 | I25: 960 | J25: 80 | L25: 1280 | M25: 64 | N25: 3.2 | O25: 6400 | P25: 112 | Q25: 3.2 | R25: 192 | S25: 32 | U25: 3520 | V25: 64 | X25: 1 | Y25: 1 | Z25: =AC25+AD25 -> 20 | AA25: 1 | AC25: 10 | AD25: 10 | AF25: 1 | AG25: =AF25*AG$24 -> 6
A26: 24 | B26: 3.3 | C26: 20 | E26: 1667 | F26: 50 | G26: 3.334 | I26: 996 | J26: 83 | L26: 1320 | M26: 66 | N26: 3.3145 | O26: 6629 | P26: 116 | Q26: 3.314285714 | R26: 198 | S26: 33 | U26: 3630 | V26: 66 | X26: 2 | Y26: 50 | Z26: =AC26+AD26 -> 21 | AA26: 1 | AC26: 10 | AD26: 11 | AF26: 1.1 | AG26: =AF26*AG$24 -> 6.6
A27: 25 | B27: 3.4 | C27: 20 | E27: 1700 | F27: 51 | G27: 3.4 | I27: 1020 | J27: 85 | L27: 1360 | M27: 68 | N27: 3.4 | O27: 6800 | P27: 119 | Q27: 3.4 | R27: 204 | S27: 34 | U27: 3740 | V27: 68 | X27: 3 | Y27: 100 | Z27: 22 | AA27: 1 | AC27: 10 | AD27: 12 | AF27: 1.2 | AG27: 7.2
A28: 26 | B28: 3.5 | C28: 20 | E28: 1767 | F28: 53 | G28: 3.534 | I28: 1056 | J28: 88 | L28: 1400 | M28: 70 | N28: 3.5145 | O28: 7029 | P28: 123 | Q28: 3.514285714 | R28: 210 | S28: 35 | U28: 3850 | V28: 70 | X28: 4 | Y28: 150 | Z28: 23 | AA28: 1 | AC28: 10 | AD28: 13 | AF28: 1.3 | AG28: 7.8
A29: 27 | B29: 3.6 | C29: 20 | E29: 1800 | F29: 54 | G29: 3.6 | I29: 1080 | J29: 90 | L29: 1440 | M29: 72 | N29: 3.6 | O29: 7200 | P29: 126 | Q29: 3.6 | R29: 216 | S29: 36 | U29: 3960 | V29: 72 | X29: 5 | Y29: 200 | Z29: 24 | AA29: 1 | AC29: 10 | AD29: 14 | AF29: 1.4 | AG29: 8.4
A30: 28 | B30: 3.7 | C30: 20 | E30: 1867 | F30: 56 | G30: 3.734 | I30: 1116 | J30: 93 | L30: 1480 | M30: 74 | N30: 3.7145 | O30: 7429 | P30: 130 | Q30: 3.714285714 | R30: 222 | S30: 37 | U30: 4070 | V30: 74 | X30: 6 | Y30: 250 | Z30: 25 | AA30: 1 | AC30: 10 | AD30: 15 | AF30: 1.5 | AG30: 9
A31: 29 | B31: 3.8 | C31: 20 | E31: 1900 | F31: 57 | G31: 3.8 | I31: 1140 | J31: 95 | L31: 1520 | M31: 76 | N31: 3.8 | O31: 7600 | P31: 133 | Q31: 3.8 | R31: 228 | S31: 38 | U31: 4180 | V31: 76 | X31: 7 | Y31: 300 | Z31: 26 | AA31: 1 | AC31: 10 | AD31: 16 | AF31: 1.6 | AG31: 9.6
A32: 30 | B32: 3.9 | C32: 20 | E32: 1967 | F32: 59 | G32: 3.934 | I32: 1176 | J32: 98 | L32: 1560 | M32: 78 | N32: 3.9145 | O32: 7829 | P32: 137 | Q32: 3.914285714 | R32: 234 | S32: 39 | U32: 4290 | V32: 78
A33: 31 | B33: 4 | C33: 20 | E33: 2000 | F33: 60 | G33: 4 | I33: 1200 | J33: 100 | L33: 1600 | M33: 80 | N33: 4 | O33: 8000 | P33: 140 | Q33: 4 | R33: 240 | S33: 40 | U33: 4400 | V33: 80
A34: 32 | B34: 4.1 | C34: 20 | E34: 2067 | F34: 62 | G34: 4.134 | I34: 1236 | J34: 103 | L34: 1640 | M34: 82 | N34: 4.1145 | O34: 8229 | P34: 144 | Q34: 4.114285714 | R34: 246 | S34: 41 | U34: 4510 | V34: 82
A35: 33 | B35: 4.2 | C35: 20 | E35: 2100 | F35: 63 | G35: 4.2 | I35: 1260 | J35: 105 | L35: 1680 | M35: 84 | N35: 4.2 | O35: 8400 | P35: 147 | Q35: 4.2 | R35: 252 | S35: 42 | U35: 4620 | V35: 84
A36: 34 | B36: 4.3 | C36: 20 | E36: 2167 | F36: 65 | G36: 4.334 | I36: 1296 | J36: 108 | L36: 1720 | M36: 86 | N36: 4.3145 | O36: 8629 | P36: 151 | Q36: 4.314285714 | R36: 258 | S36: 43 | U36: 4730 | V36: 86
A37: 35 | B37: 4.4 | C37: 20 | E37: 2200 | F37: 66 | G37: 4.4 | I37: 1320 | J37: 110 | L37: 1760 | M37: 88 | N37: 4.4 | O37: 8800 | P37: 154 | Q37: 4.4 | R37: 264 | S37: 44 | U37: 4840 | V37: 88
A38: 36 | B38: 4.5 | C38: 20 | E38: 2267 | F38: 68 | G38: 4.534 | I38: 1356 | J38: 113 | L38: 1800 | M38: 90 | N38: 4.5145 | O38: 9029 | P38: 158 | Q38: 4.514285714 | R38: 270 | S38: 45 | U38: 4950 | V38: 90
A39: 37 | B39: 4.6 | C39: 20 | E39: 2300 | F39: 69 | G39: 4.6 | I39: 1380 | J39: 115 | L39: 1840 | M39: 92 | N39: 4.6 | O39: 9200 | P39: 161 | Q39: 4.6 | R39: 276 | S39: 46 | U39: 5060 | V39: 92
A40: 38 | B40: 4.7 | C40: 20 | E40: 2367 | F40: 71 | G40: 4.734 | I40: 1416 | J40: 118 | L40: 1880 | M40: 94 | N40: 4.7145 | O40: 9429 | P40: 165 | Q40: 4.714285714 | R40: 282 | S40: 47 | U40: 5170 | V40: 94
A41: 39 | B41: 4.8 | C41: 20 | E41: 2400 | F41: 72 | G41: 4.8 | I41: 1440 | J41: 120 | L41: 1920 | M41: 96 | N41: 4.8 | O41: 9600 | P41: 168 | Q41: 4.8 | R41: 288 | S41: 48 | U41: 5280 | V41: 96
A42: 40 | B42: 4.9 | C42: 20 | E42: 2433 | F42: 73 | G42: 4.866 | I42: 1476 | J42: 123 | L42: 1960 | M42: 98 | N42: 4.9145 | O42: 9829 | P42: 172 | Q42: 4.914285714 | R42: 294 | S42: 49 | U42: 5390 | V42: 98
A43: 41 | B43: 5 | C43: 20 | E43: 2500 | F43: 75 | G43: 5 | I43: 1500 | J43: 125 | L43: 2000 | M43: 100 | N43: 5 | O43: 10000 | P43: 175 | Q43: 5 | R43: 300 | S43: 50 | U43: 5500 | V43: 100
A44: 42 | B44: 5.1 | C44: 20 | E44: 2533 | F44: 76 | G44: 5.066 | I44: 1536 | J44: 128 | L44: 2040 | M44: 102 | N44: 5.1145 | O44: 10229 | P44: 179 | Q44: 5.114285714 | R44: 306 | S44: 51 | U44: 5610 | V44: 102
A45: 43 | B45: 5.2 | C45: 20 | E45: 2600 | F45: 78 | G45: 5.2 | I45: 1560 | J45: 130 | L45: 2080 | M45: 104 | N45: 5.2 | O45: 10400 | P45: 182 | Q45: 5.2 | R45: 312 | S45: 52 | U45: 5720 | V45: 104
A46: 44 | B46: 5.3 | C46: 20 | E46: 2633 | F46: 79 | G46: 5.266 | I46: 1596 | J46: 133 | L46: 2120 | M46: 106 | N46: 5.3145 | O46: 10629 | P46: 186 | Q46: 5.314285714 | R46: 318 | S46: 53 | U46: 5830 | V46: 106
A47: 45 | B47: 5.4 | C47: 20 | E47: 2700 | F47: 81 | G47: 5.4 | I47: 1620 | J47: 135 | L47: 2160 | M47: 108 | N47: 5.4 | O47: 10800 | P47: 189 | Q47: 5.4 | R47: 324 | S47: 54 | U47: 5940 | V47: 108
A48: 46 | B48: 5.5 | C48: 20 | E48: 2733 | F48: 82 | G48: 5.466 | I48: 1656 | J48: 138 | L48: 2200 | M48: 110 | N48: 5.5145 | O48: 11029 | P48: 193 | Q48: 5.514285714 | R48: 330 | S48: 55 | U48: 6050 | V48: 110
A49: 47 | B49: 5.6 | C49: 20 | E49: 2800 | F49: 84 | G49: 5.6 | I49: 1680 | J49: 140 | L49: 2240 | M49: 112 | N49: 5.6 | O49: 11200 | P49: 196 | Q49: 5.6 | R49: 336 | S49: 56 | U49: 6160 | V49: 112
A50: 48 | B50: 5.7 | C50: 20 | E50: 2833 | F50: 85 | G50: 5.666 | I50: 1716 | J50: 143 | L50: 2280 | M50: 114 | N50: 5.7145 | O50: 11429 | P50: 200 | Q50: 5.714285714 | R50: 342 | S50: 57 | U50: 6270 | V50: 114
A51: 49 | B51: 5.8 | C51: 20 | E51: 2900 | F51: 87 | G51: 5.8 | I51: 1740 | J51: 145 | L51: 2320 | M51: 116 | N51: 5.8 | O51: 11600 | P51: 203 | Q51: 5.8 | R51: 348 | S51: 58 | U51: 6380 | V51: 116
A52: 50 | B52: 5.9 | C52: 21 | E52: 3080 | F52: 88 | G52: 6.16 | I52: 1865 | J52: 148 | L52: 2478 | M52: 118 | N52: 6.21 | O52: 12420 | P52: 207 | Q52: 5.914285714 | R52: 372 | S52: 59 | U52: 6815 | V52: 118
A53: 51 | B53: 6 | C53: 21 | E53: 3150 | F53: 90 | G53: 6.3 | I53: 1890 | J53: 150 | L53: 2520 | M53: 120 | N53: 6.3 | O53: 12600 | P53: 210 | Q53: 6 | R53: 378 | S53: 60 | U53: 6930 | V53: 120
A54: 52 | B54: 6.1 | C54: 21 | E54: 3185 | F54: 91 | G54: 6.37 | I54: 1928 | J54: 153 | L54: 2562 | M54: 122 | N54: 6.42 | O54: 12840 | P54: 214 | Q54: 6.114285714 | R54: 384 | S54: 61 | U54: 7046 | V54: 122
A55: 53 | B55: 6.2 | C55: 21 | E55: 3255 | F55: 93 | G55: 6.51 | I55: 1953 | J55: 155 | L55: 2604 | M55: 124 | N55: 6.51 | O55: 13020 | P55: 217 | Q55: 6.2 | R55: 391 | S55: 62 | U55: 7161 | V55: 124
A56: 54 | B56: 6.3 | C56: 21 | E56: 3290 | F56: 94 | G56: 6.58 | I56: 1991 | J56: 158 | L56: 2646 | M56: 126 | N56: 6.63 | O56: 13260 | P56: 221 | Q56: 6.314285714 | R56: 397 | S56: 63 | U56: 7277 | V56: 126
A57: 55 | B57: 6.4 | C57: 21 | E57: 3360 | F57: 96 | G57: 6.72 | I57: 2016 | J57: 160 | L57: 2688 | M57: 128 | N57: 6.72 | O57: 13440 | P57: 224 | Q57: 6.4 | R57: 403 | S57: 64 | U57: 7392 | V57: 128
A58: 56 | B58: 6.5 | C58: 21 | E58: 3395 | F58: 97 | G58: 6.79 | I58: 2054 | J58: 163 | L58: 2730 | M58: 130 | N58: 6.84 | O58: 13680 | P58: 228 | Q58: 6.514285714 | R58: 410 | S58: 65 | U58: 7508 | V58: 130
A59: 57 | B59: 6.6 | C59: 21 | E59: 3465 | F59: 99 | G59: 6.93 | I59: 2079 | J59: 165 | L59: 2772 | M59: 132 | N59: 6.93 | O59: 13860 | P59: 231 | Q59: 6.6 | R59: 416 | S59: 66 | U59: 7623 | V59: 132
A60: 58 | B60: 6.7 | C60: 21 | E60: 3535 | F60: 101 | G60: 7.07 | I60: 2117 | J60: 168 | L60: 2814 | M60: 134 | N60: 7.05 | O60: 14100 | P60: 235 | Q60: 6.714285714 | R60: 422 | S60: 67 | U60: 7739 | V60: 134
A61: 59 | B61: 6.8 | C61: 21 | E61: 3570 | F61: 102 | G61: 7.14 | I61: 2142 | J61: 170 | L61: 2856 | M61: 136 | N61: 7.14 | O61: 14280 | P61: 238 | Q61: 6.8 | R61: 428 | S61: 68 | U61: 7854 | V61: 136
A62: 60 | B62: 6.9 | C62: 21 | E62: 3640 | F62: 104 | G62: 7.28 | I62: 2180 | J62: 173 | L62: 2898 | M62: 138 | N62: 7.26 | O62: 14520 | P62: 242 | Q62: 6.914285714 | R62: 435 | S62: 69 | U62: 7970 | V62: 138
A63: 61 | B63: 7 | C63: 21 | E63: 3675 | F63: 105 | G63: 7.35 | I63: 2205 | J63: 175 | L63: 2940 | M63: 140 | N63: 7.35 | O63: 14700 | P63: 245 | Q63: 7 | R63: 441 | S63: 70 | U63: 8085 | V63: 140
A64: 62 | B64: 7.1 | C64: 21 | E64: 3745 | F64: 107 | G64: 7.49 | I64: 2243 | J64: 178 | L64: 2982 | M64: 142 | N64: 7.47 | O64: 14940 | P64: 249 | Q64: 7.114285714 | R64: 447 | S64: 71 | U64: 8201 | V64: 142
A65: 63 | B65: 7.2 | C65: 21 | E65: 3780 | F65: 108 | G65: 7.56 | I65: 2268 | J65: 180 | L65: 3024 | M65: 144 | N65: 7.56 | O65: 15120 | P65: 252 | Q65: 7.2 | R65: 454 | S65: 72 | U65: 8316 | V65: 144
A66: 64 | B66: 7.3 | C66: 21 | E66: 3850 | F66: 110 | G66: 7.7 | I66: 2306 | J66: 183 | L66: 3066 | M66: 146 | N66: 7.68 | O66: 15360 | P66: 256 | Q66: 7.314285714 | R66: 460 | S66: 73 | U66: 8432 | V66: 146
A67: 65 | B67: 7.4 | C67: =VLOOKUP(A67,Y$25:Z$31,2) -> 21 | E67: 3885 | F67: 111 | G67: 7.77 | I67: =ROUND(AB$9*J67*$C67,0) -> 2331 | J67: 185 | L67: =ROUND(AB$10*M67*$C67,0) -> 3108 | M67: 148 | N67: 7.77 | O67: =ROUND(AB$13*P67*$C67,0) -> 15540 | P67: 259 | Q67: 7.4 | R67: 466 | S67: 74 | U67: 8547 | V67: 148
A68: 66 | B68: 7.5 | C68: 21 | E68: =ROUND(AB$8*F68*$C68,0) -> 3955 | F68: 113 | G68: 7.91 | I68: 2369 | J68: 188 | L68: 3150 | M68: 150 | N68: 7.89 | O68: 15780 | P68: 263 | Q68: 7.514285714 | R68: =ROUND(AB$14*S68*$C68,0) -> 473 | S68: 75 | U68: =ROUND(AB$15*V68*$C68,0) -> 8663 | V68: 150
A69: 67 | B69: 7.6 | C69: 21 | E69: 3990 | F69: =ROUND(F$3*$B69,0) -> 114 | G69: =E69/E$3 -> 7.98 | I69: 2394 | J69: =ROUND(J$3*$B69,0) -> 190 | L69: 3192 | M69: =ROUND(M$3*$B69,0) -> 152 | N69: =O69/O$3 -> 7.98 | O69: 15960 | P69: =ROUND(P$3*$B69,0) -> 266 | Q69: =P69/P$3 -> 7.6 | R69: 479 | S69: =ROUND(S$3*$B69,0) -> 76 | U69: 8778 | V69: =ROUND(V$3*$B69,0) -> 152
A70: 68 | B70: 7.7 | C70: 21 | E70: 4060 | F70: 116 | G70: 8.12 | I70: 2432 | J70: 193 | L70: 3234 | M70: 154 | N70: 8.1 | O70: 16200 | P70: 270 | Q70: 7.714285714 | R70: 485 | S70: 77 | U70: 8894 | V70: 154
A71: 69 | B71: 7.8 | C71: 21 | E71: 4095 | F71: 117 | G71: 8.19 | I71: 2457 | J71: 195 | L71: 3276 | M71: 156 | N71: 8.19 | O71: 16380 | P71: 273 | Q71: 7.8 | R71: 491 | S71: 78 | U71: 9009 | V71: 156
A72: 70 | B72: 7.9 | C72: 21 | E72: 4165 | F72: 119 | G72: 8.33 | I72: 2495 | J72: 198 | L72: 3318 | M72: 158 | N72: 8.31 | O72: 16620 | P72: 277 | Q72: 7.914285714 | R72: 498 | S72: 79 | U72: 9125 | V72: 158
A73: 71 | B73: 8 | C73: 21 | E73: 4200 | F73: 120 | G73: 8.4 | I73: 2520 | J73: 200 | L73: 3360 | M73: 160 | N73: 8.4 | O73: 16800 | P73: 280 | Q73: 8 | R73: 504 | S73: 80 | U73: 9240 | V73: 160
A74: 72 | B74: 8.1 | C74: 21 | E74: 4270 | F74: 122 | G74: 8.54 | I74: 2558 | J74: 203 | L74: 3402 | M74: 162 | N74: 8.52 | O74: 17040 | P74: 284 | Q74: 8.114285714 | R74: 510 | S74: 81 | U74: 9356 | V74: 162
A75: 73 | B75: 8.2 | C75: 21 | E75: 4305 | F75: 123 | G75: 8.61 | I75: 2583 | J75: 205 | L75: 3444 | M75: 164 | N75: 8.61 | O75: 17220 | P75: 287 | Q75: 8.2 | R75: 517 | S75: 82 | U75: 9471 | V75: 164
A76: 74 | B76: 8.3 | C76: 21 | E76: 4375 | F76: 125 | G76: 8.75 | I76: 2621 | J76: 208 | L76: 3486 | M76: 166 | N76: 8.73 | O76: 17460 | P76: 291 | Q76: 8.314285714 | R76: 523 | S76: 83 | U76: 9587 | V76: 166
A77: 75 | B77: 8.4 | C77: 21 | E77: 4410 | F77: 126 | G77: 8.82 | I77: 2646 | J77: 210 | L77: 3528 | M77: 168 | N77: 8.82 | O77: 17640 | P77: 294 | Q77: 8.4 | R77: 529 | S77: 84 | U77: 9702 | V77: 168
A78: 76 | B78: 8.5 | C78: 21 | E78: 4480 | F78: 128 | G78: 8.96 | I78: 2684 | J78: 213 | L78: 3570 | M78: 170 | N78: 8.94 | O78: 17880 | P78: 298 | Q78: 8.514285714 | R78: 536 | S78: 85 | U78: 9818 | V78: 170
A79: 77 | B79: 8.6 | C79: 21 | E79: 4515 | F79: 129 | G79: 9.03 | I79: 2709 | J79: 215 | L79: 3612 | M79: 172 | N79: 9.03 | O79: 18060 | P79: 301 | Q79: 8.6 | R79: 542 | S79: 86 | U79: 9933 | V79: 172
A80: 78 | B80: 8.7 | C80: 21 | E80: 4585 | F80: 131 | G80: 9.17 | I80: 2747 | J80: 218 | L80: 3654 | M80: 174 | N80: 9.15 | O80: 18300 | P80: 305 | Q80: 8.714285714 | R80: 548 | S80: 87 | U80: 10049 | V80: 174
A81: 79 | B81: 8.8 | C81: 21 | E81: 4620 | F81: 132 | G81: 9.24 | I81: 2772 | J81: 220 | L81: 3696 | M81: 176 | N81: 9.24 | O81: 18480 | P81: 308 | Q81: 8.8 | R81: 554 | S81: 88 | U81: 10164 | V81: 176
A82: 80 | B82: 8.9 | C82: 21 | E82: 4690 | F82: 134 | G82: 9.38 | I82: 2810 | J82: 223 | L82: 3738 | M82: 178 | N82: 9.36 | O82: 18720 | P82: 312 | Q82: 8.914285714 | R82: 561 | S82: 89 | U82: 10280 | V82: 178
A83: 81 | B83: 9 | C83: 21 | E83: 4725 | F83: 135 | G83: 9.45 | I83: 2835 | J83: 225 | L83: 3780 | M83: 180 | N83: 9.45 | O83: 18900 | P83: 315 | Q83: 9 | R83: 567 | S83: 90 | U83: 10395 | V83: 180
A84: 82 | B84: 9.1 | C84: 21 | E84: 4795 | F84: 137 | G84: 9.59 | I84: 2873 | J84: 228 | L84: 3822 | M84: 182 | N84: 9.57 | O84: 19140 | P84: 319 | Q84: 9.114285714 | R84: 573 | S84: 91 | U84: 10511 | V84: 182
A85: 83 | B85: 9.2 | C85: 21 | E85: 4830 | F85: 138 | G85: 9.66 | I85: 2898 | J85: 230 | L85: 3864 | M85: 184 | N85: 9.66 | O85: 19320 | P85: 322 | Q85: 9.2 | R85: 580 | S85: 92 | U85: 10626 | V85: 184
A86: 84 | B86: 9.3 | C86: 21 | E86: 4900 | F86: 140 | G86: 9.8 | I86: 2936 | J86: 233 | L86: 3906 | M86: 186 | N86: 9.78 | O86: 19560 | P86: 326 | Q86: 9.314285714 | R86: 586 | S86: 93 | U86: 10742 | V86: 186
A87: 85 | B87: 9.4 | C87: 21 | E87: 4935 | F87: 141 | G87: 9.87 | I87: 2961 | J87: 235 | L87: 3948 | M87: 188 | N87: 9.87 | O87: 19740 | P87: 329 | Q87: 9.4 | R87: 592 | S87: 94 | U87: 10857 | V87: 188
A88: 86 | B88: 9.5 | C88: 21 | E88: 5005 | F88: 143 | G88: 10.01 | I88: 2999 | J88: 238 | L88: 3990 | M88: 190 | N88: 9.99 | O88: 19980 | P88: 333 | Q88: 9.514285714 | R88: 599 | S88: 95 | U88: 10973 | V88: 190
A89: 87 | B89: 9.6 | C89: 21 | E89: 5040 | F89: 144 | G89: 10.08 | I89: 3024 | J89: 240 | L89: 4032 | M89: 192 | N89: 10.08 | O89: 20160 | P89: 336 | Q89: 9.6 | R89: 605 | S89: 96 | U89: 11088 | V89: 192
A90: 88 | B90: 9.7 | C90: 21 | E90: 5110 | F90: 146 | G90: 10.22 | I90: 3062 | J90: 243 | L90: 4074 | M90: 194 | N90: 10.2 | O90: 20400 | P90: 340 | Q90: 9.714285714 | R90: 611 | S90: 97 | U90: 11204 | V90: 194
A91: 89 | B91: 9.8 | C91: 21 | E91: 5145 | F91: 147 | G91: 10.29 | I91: 3087 | J91: 245 | L91: 4116 | M91: 196 | N91: 10.29 | O91: 20580 | P91: 343 | Q91: 9.8 | R91: 617 | S91: 98 | U91: 11319 | V91: 196
A92: 90 | B92: 9.9 | C92: 21 | E92: 5215 | F92: 149 | G92: 10.43 | I92: 3125 | J92: 248 | L92: 4158 | M92: 198 | N92: 10.41 | O92: 20820 | P92: 347 | Q92: 9.914285714 | R92: 624 | S92: 99 | U92: 11435 | V92: 198
A93: 91 | B93: 10 | C93: 21 | E93: 5250 | F93: 150 | G93: 10.5 | I93: 3150 | J93: 250 | L93: 4200 | M93: 200 | N93: 10.5 | O93: 21000 | P93: 350 | Q93: 10 | R93: 630 | S93: 100 | U93: 11550 | V93: 200
A94: 92 | B94: 10.1 | C94: 21 | E94: 5320 | F94: 152 | G94: 10.64 | I94: 3188 | J94: 253 | L94: 4242 | M94: 202 | N94: 10.62 | O94: 21240 | P94: 354 | Q94: 10.11428571 | R94: 636 | S94: 101 | U94: 11666 | V94: 202
A95: 93 | B95: 10.2 | C95: 21 | E95: 5355 | F95: 153 | G95: 10.71 | I95: 3213 | J95: 255 | L95: 4284 | M95: 204 | N95: 10.71 | O95: 21420 | P95: 357 | Q95: 10.2 | R95: 643 | S95: 102 | U95: 11781 | V95: 204
A96: 94 | B96: 10.3 | C96: 21 | E96: 5425 | F96: 155 | G96: 10.85 | I96: 3251 | J96: 258 | L96: 4326 | M96: 206 | N96: 10.83 | O96: 21660 | P96: 361 | Q96: 10.31428571 | R96: 649 | S96: 103 | U96: 11897 | V96: 206
A97: 95 | B97: 10.4 | C97: 21 | E97: 5460 | F97: 156 | G97: 10.92 | I97: 3276 | J97: 260 | L97: 4368 | M97: 208 | N97: 10.92 | O97: 21840 | P97: 364 | Q97: 10.4 | R97: 655 | S97: 104 | U97: 12012 | V97: 208
A98: 96 | B98: 10.5 | C98: 21 | E98: 5530 | F98: 158 | G98: 11.06 | I98: 3314 | J98: 263 | L98: 4410 | M98: 210 | N98: 11.04 | O98: 22080 | P98: 368 | Q98: 10.51428571 | R98: 662 | S98: 105 | U98: 12128 | V98: 210
A99: 97 | B99: 10.6 | C99: 21 | E99: 5565 | F99: 159 | G99: 11.13 | I99: 3339 | J99: 265 | L99: 4452 | M99: 212 | N99: 11.13 | O99: 22260 | P99: 371 | Q99: 10.6 | R99: 668 | S99: 106 | U99: 12243 | V99: 212
A100: 98 | B100: 10.7 | C100: 21 | E100: 5635 | F100: 161 | G100: 11.27 | I100: 3377 | J100: 268 | L100: 4494 | M100: 214 | N100: 11.25 | O100: 22500 | P100: 375 | Q100: 10.71428571 | R100: 674 | S100: 107 | U100: 12359 | V100: 214
A101: 99 | B101: 10.8 | C101: 21 | E101: 5670 | F101: 162 | G101: 11.34 | I101: 3402 | J101: 270 | L101: 4536 | M101: 216 | N101: 11.34 | O101: 22680 | P101: 378 | Q101: 10.8 | R101: 680 | S101: 108 | U101: 12474 | V101: 216
A102: 100 | B102: 10.9 | C102: 22 | E102: 6013 | F102: 164 | G102: 12.026 | I102: 3604 | J102: 273 | L102: 4796 | M102: 218 | N102: 12.0055 | O102: 24011 | P102: 382 | Q102: 10.91428571 | R102: 719 | S102: 109 | U102: 13189 | V102: 218
A103: 101 | B103: 11 | C103: 22 | E103: 6050 | F103: 165 | G103: 12.1 | I103: 3630 | J103: 275 | L103: 4840 | M103: 220 | N103: 12.1 | O103: 24200 | P103: 385 | Q103: 11 | R103: 726 | S103: 110 | U103: 13310 | V103: 220
A104: 102 | B104: 11.1 | C104: 22 | E104: 6123 | F104: 167 | G104: 12.246 | I104: 3670 | J104: 278 | L104: 4884 | M104: 222 | N104: 12.2255 | O104: 24451 | P104: 389 | Q104: 11.11428571 | R104: 733 | S104: 111 | U104: 13431 | V104: 222
A105: 103 | B105: 11.2 | C105: 22 | E105: 6160 | F105: 168 | G105: 12.32 | I105: 3696 | J105: 280 | L105: 4928 | M105: 224 | N105: 12.32 | O105: 24640 | P105: 392 | Q105: 11.2 | R105: 739 | S105: 112 | U105: 13552 | V105: 224
A106: 104 | B106: 11.3 | C106: 22 | E106: 6233 | F106: 170 | G106: 12.466 | I106: 3736 | J106: 283 | L106: 4972 | M106: 226 | N106: 12.4455 | O106: 24891 | P106: 396 | Q106: 11.31428571 | R106: 746 | S106: 113 | U106: 13673 | V106: 226
A107: 105 | B107: 11.4 | C107: 22 | E107: 6270 | F107: 171 | G107: 12.54 | I107: 3762 | J107: 285 | L107: 5016 | M107: 228 | N107: 12.54 | O107: 25080 | P107: 399 | Q107: 11.4 | R107: 752 | S107: 114 | U107: 13794 | V107: 228
A108: 106 | B108: 11.5 | C108: 22 | E108: 6343 | F108: 173 | G108: 12.686 | I108: 3802 | J108: 288 | L108: 5060 | M108: 230 | N108: 12.6655 | O108: 25331 | P108: 403 | Q108: 11.51428571 | R108: 759 | S108: 115 | U108: 13915 | V108: 230
A109: 107 | B109: 11.6 | C109: 22 | E109: 6380 | F109: 174 | G109: 12.76 | I109: 3828 | J109: 290 | L109: 5104 | M109: 232 | N109: 12.76 | O109: 25520 | P109: 406 | Q109: 11.6 | R109: 766 | S109: 116 | U109: 14036 | V109: 232
A110: 108 | B110: 11.7 | C110: 22 | E110: 6453 | F110: 176 | G110: 12.906 | I110: 3868 | J110: 293 | L110: 5148 | M110: 234 | N110: 12.8855 | O110: 25771 | P110: 410 | Q110: 11.71428571 | R110: 772 | S110: 117 | U110: 14157 | V110: 234
A111: 109 | B111: 11.8 | C111: 22 | E111: 6490 | F111: 177 | G111: 12.98 | I111: 3894 | J111: 295 | L111: 5192 | M111: 236 | N111: 12.98 | O111: 25960 | P111: 413 | Q111: 11.8 | R111: 779 | S111: 118 | U111: 14278 | V111: 236
A112: 110 | B112: 11.9 | C112: 22 | E112: 6563 | F112: 179 | G112: 13.126 | I112: 3934 | J112: 298 | L112: 5236 | M112: 238 | N112: 13.1055 | O112: 26211 | P112: 417 | Q112: 11.91428571 | R112: 785 | S112: 119 | U112: 14399 | V112: 238
A113: 111 | B113: 12 | C113: 22 | E113: 6600 | F113: 180 | G113: 13.2 | I113: 3960 | J113: 300 | L113: 5280 | M113: 240 | N113: 13.2 | O113: 26400 | P113: 420 | Q113: 12 | R113: 792 | S113: 120 | U113: 14520 | V113: 240
A114: 112 | B114: 12.1 | C114: 22 | E114: 6673 | F114: 182 | G114: 13.346 | I114: 4000 | J114: 303 | L114: 5324 | M114: 242 | N114: 13.3255 | O114: 26651 | P114: 424 | Q114: 12.11428571 | R114: 799 | S114: 121 | U114: 14641 | V114: 242
A115: 113 | B115: 12.2 | C115: 22 | E115: 6710 | F115: 183 | G115: 13.42 | I115: 4026 | J115: 305 | L115: 5368 | M115: 244 | N115: 13.42 | O115: 26840 | P115: 427 | Q115: 12.2 | R115: 805 | S115: 122 | U115: 14762 | V115: 244
A116: 114 | B116: 12.3 | C116: 22 | E116: 6783 | F116: 185 | G116: 13.566 | I116: 4066 | J116: 308 | L116: 5412 | M116: 246 | N116: 13.5455 | O116: 27091 | P116: 431 | Q116: 12.31428571 | R116: 812 | S116: 123 | U116: 14883 | V116: 246
A117: 115 | B117: 12.4 | C117: 22 | E117: 6820 | F117: 186 | G117: 13.64 | I117: 4092 | J117: 310 | L117: 5456 | M117: 248 | N117: 13.64 | O117: 27280 | P117: 434 | Q117: 12.4 | R117: 818 | S117: 124 | U117: 15004 | V117: 248
A118: 116 | B118: 12.5 | C118: 22 | E118: 6893 | F118: 188 | G118: 13.786 | I118: 4132 | J118: 313 | L118: 5500 | M118: 250 | N118: 13.7655 | O118: 27531 | P118: 438 | Q118: 12.51428571 | R118: 825 | S118: 125 | U118: 15125 | V118: 250
A119: 117 | B119: 12.6 | C119: 22 | E119: 6930 | F119: 189 | G119: 13.86 | I119: 4158 | J119: 315 | L119: 5544 | M119: 252 | N119: 13.86 | O119: 27720 | P119: 441 | Q119: 12.6 | R119: 832 | S119: 126 | U119: 15246 | V119: 252
A120: 118 | B120: 12.7 | C120: 22 | E120: 7003 | F120: 191 | G120: 14.006 | I120: 4198 | J120: 318 | L120: 5588 | M120: 254 | N120: 13.9855 | O120: 27971 | P120: 445 | Q120: 12.71428571 | R120: 838 | S120: 127 | U120: 15367 | V120: 254
A121: 119 | B121: 12.8 | C121: 22 | E121: 7040 | F121: 192 | G121: 14.08 | I121: 4224 | J121: 320 | L121: 5632 | M121: 256 | N121: 14.08 | O121: 28160 | P121: 448 | Q121: 12.8 | R121: 845 | S121: 128 | U121: 15488 | V121: 256
A122: 120 | B122: 12.9 | C122: 22 | E122: 7113 | F122: 194 | G122: 14.226 | I122: 4264 | J122: 323 | L122: 5676 | M122: 258 | N122: 14.2055 | O122: 28411 | P122: 452 | Q122: 12.91428571 | R122: 851 | S122: 129 | U122: 15609 | V122: 258
A123: 121 | B123: 13 | C123: 22 | E123: 7150 | F123: 195 | G123: 14.3 | I123: 4290 | J123: 325 | L123: 5720 | M123: 260 | N123: 14.3 | O123: 28600 | P123: 455 | Q123: 13 | R123: 858 | S123: 130 | U123: 15730 | V123: 260
A124: 122 | B124: 13.1 | C124: 22 | E124: 7223 | F124: 197 | G124: 14.446 | I124: 4330 | J124: 328 | L124: 5764 | M124: 262 | N124: 14.4255 | O124: 28851 | P124: 459 | Q124: 13.11428571 | R124: 865 | S124: 131 | U124: 15851 | V124: 262
A125: 123 | B125: 13.2 | C125: 22 | E125: 7260 | F125: 198 | G125: 14.52 | I125: 4356 | J125: 330 | L125: 5808 | M125: 264 | N125: 14.52 | O125: 29040 | P125: 462 | Q125: 13.2 | R125: 871 | S125: 132 | U125: 15972 | V125: 264
A126: 124 | B126: 13.3 | C126: 22 | E126: 7333 | F126: 200 | G126: 14.666 | I126: 4396 | J126: 333 | L126: 5852 | M126: 266 | N126: 14.6455 | O126: 29291 | P126: 466 | Q126: 13.31428571 | R126: 878 | S126: 133 | U126: 16093 | V126: 266
A127: 125 | B127: 13.4 | C127: 22 | E127: 7370 | F127: 201 | G127: 14.74 | I127: 4422 | J127: 335 | L127: 5896 | M127: 268 | N127: 14.74 | O127: 29480 | P127: 469 | Q127: 13.4 | R127: 884 | S127: 134 | U127: 16214 | V127: 268
A128: 126 | B128: 13.5 | C128: 22 | E128: 7443 | F128: 203 | G128: 14.886 | I128: 4462 | J128: 338 | L128: 5940 | M128: 270 | N128: 14.8655 | O128: 29731 | P128: 473 | Q128: 13.51428571 | R128: 891 | S128: 135 | U128: 16335 | V128: 270
A129: 127 | B129: 13.6 | C129: 22 | E129: 7480 | F129: 204 | G129: 14.96 | I129: 4488 | J129: 340 | L129: 5984 | M129: 272 | N129: 14.96 | O129: 29920 | P129: 476 | Q129: 13.6 | R129: 898 | S129: 136 | U129: 16456 | V129: 272
A130: 128 | B130: 13.7 | C130: 22 | E130: 7553 | F130: 206 | G130: 15.106 | I130: 4528 | J130: 343 | L130: 6028 | M130: 274 | N130: 15.0855 | O130: 30171 | P130: 480 | Q130: 13.71428571 | R130: 904 | S130: 137 | U130: 16577 | V130: 274
A131: 129 | B131: 13.8 | C131: =VLOOKUP(A131,Y$25:Z$31,2) -> 22 | E131: 7590 | F131: 207 | G131: 15.18 | I131: =ROUND(AB$9*J131*$C131,0) -> 4554 | J131: 345 | L131: =ROUND(AB$10*M131*$C131,0) -> 6072 | M131: 276 | N131: 15.18 | O131: =ROUND(AB$13*P131*$C131,0) -> 30360 | P131: 483 | Q131: 13.8 | R131: 911 | S131: 138 | U131: 16698 | V131: 276
A132: 130 | B132: 13.9 | C132: 22 | E132: =ROUND(AB$8*F132*$C132,0) -> 7663 | F132: 209 | G132: 15.326 | I132: 4594 | J132: 348 | L132: 6116 | M132: 278 | N132: 15.3055 | O132: 30611 | P132: 487 | Q132: 13.91428571 | R132: =ROUND(AB$14*S132*$C132,0) -> 917 | S132: 139 | U132: =ROUND(AB$15*V132*$C132,0) -> 16819 | V132: 278
A133: 131 | B133: 14 | C133: 22 | E133: 7700 | F133: =ROUND(F$3*$B133,0) -> 210 | G133: =E133/E$3 -> 15.4 | I133: 4620 | J133: =ROUND(J$3*$B133,0) -> 350 | L133: 6160 | M133: =ROUND(M$3*$B133,0) -> 280 | N133: =O133/O$3 -> 15.4 | O133: 30800 | P133: =ROUND(P$3*$B133,0) -> 490 | Q133: =P133/P$3 -> 14 | R133: 924 | S133: =ROUND(S$3*$B133,0) -> 140 | U133: 16940 | V133: =ROUND(V$3*$B133,0) -> 280
A134: 132 | B134: 14.1 | C134: 22 | E134: 7773 | F134: 212 | G134: 15.546 | I134: 4660 | J134: 353 | L134: 6204 | M134: 282 | N134: 15.5255 | O134: 31051 | P134: 494 | Q134: 14.11428571 | R134: 931 | S134: 141 | U134: 17061 | V134: 282
A135: 133 | B135: 14.2 | C135: 22 | E135: 7810 | F135: 213 | G135: 15.62 | I135: 4686 | J135: 355 | L135: 6248 | M135: 284 | N135: 15.62 | O135: 31240 | P135: 497 | Q135: 14.2 | R135: 937 | S135: 142 | U135: 17182 | V135: 284
A136: 134 | B136: 14.3 | C136: 22 | E136: 7883 | F136: 215 | G136: 15.766 | I136: 4726 | J136: 358 | L136: 6292 | M136: 286 | N136: 15.7455 | O136: 31491 | P136: 501 | Q136: 14.31428571 | R136: 944 | S136: 143 | U136: 17303 | V136: 286
A137: 135 | B137: 14.4 | C137: 22 | E137: 7920 | F137: 216 | G137: 15.84 | I137: 4752 | J137: 360 | L137: 6336 | M137: 288 | N137: 15.84 | O137: 31680 | P137: 504 | Q137: 14.4 | R137: 950 | S137: 144 | U137: 17424 | V137: 288
A138: 136 | B138: 14.5 | C138: 22 | E138: 7993 | F138: 218 | G138: 15.986 | I138: 4792 | J138: 363 | L138: 6380 | M138: 290 | N138: 15.9655 | O138: 31931 | P138: 508 | Q138: 14.51428571 | R138: 957 | S138: 145 | U138: 17545 | V138: 290
A139: 137 | B139: 14.6 | C139: 22 | E139: 8030 | F139: 219 | G139: 16.06 | I139: 4818 | J139: 365 | L139: 6424 | M139: 292 | N139: 16.06 | O139: 32120 | P139: 511 | Q139: 14.6 | R139: 964 | S139: 146 | U139: 17666 | V139: 292
A140: 138 | B140: 14.7 | C140: 22 | E140: 8103 | F140: 221 | G140: 16.206 | I140: 4858 | J140: 368 | L140: 6468 | M140: 294 | N140: 16.1855 | O140: 32371 | P140: 515 | Q140: 14.71428571 | R140: 970 | S140: 147 | U140: 17787 | V140: 294
A141: 139 | B141: 14.8 | C141: 22 | E141: 8140 | F141: 222 | G141: 16.28 | I141: 4884 | J141: 370 | L141: 6512 | M141: 296 | N141: 16.28 | O141: 32560 | P141: 518 | Q141: 14.8 | R141: 977 | S141: 148 | U141: 17908 | V141: 296
A142: 140 | B142: 14.9 | C142: 22 | E142: 8213 | F142: 224 | G142: 16.426 | I142: 4924 | J142: 373 | L142: 6556 | M142: 298 | N142: 16.4055 | O142: 32811 | P142: 522 | Q142: 14.91428571 | R142: 983 | S142: 149 | U142: 18029 | V142: 298
A143: 141 | B143: 15 | C143: 22 | E143: 8250 | F143: 225 | G143: 16.5 | I143: 4950 | J143: 375 | L143: 6600 | M143: 300 | N143: 16.5 | O143: 33000 | P143: 525 | Q143: 15 | R143: 990 | S143: 150 | U143: 18150 | V143: 300
A144: 142 | B144: 15.1 | C144: 22 | E144: 8323 | F144: 227 | G144: 16.646 | I144: 4990 | J144: 378 | L144: 6644 | M144: 302 | N144: 16.6255 | O144: 33251 | P144: 529 | Q144: 15.11428571 | R144: 997 | S144: 151 | U144: 18271 | V144: 302
A145: 143 | B145: 15.2 | C145: 22 | E145: 8360 | F145: 228 | G145: 16.72 | I145: 5016 | J145: 380 | L145: 6688 | M145: 304 | N145: 16.72 | O145: 33440 | P145: 532 | Q145: 15.2 | R145: 1003 | S145: 152 | U145: 18392 | V145: 304
A146: 144 | B146: 15.3 | C146: 22 | E146: 8433 | F146: 230 | G146: 16.866 | I146: 5056 | J146: 383 | L146: 6732 | M146: 306 | N146: 16.8455 | O146: 33691 | P146: 536 | Q146: 15.31428571 | R146: 1010 | S146: 153 | U146: 18513 | V146: 306
A147: 145 | B147: 15.4 | C147: 22 | E147: 8470 | F147: 231 | G147: 16.94 | I147: 5082 | J147: 385 | L147: 6776 | M147: 308 | N147: 16.94 | O147: 33880 | P147: 539 | Q147: 15.4 | R147: 1016 | S147: 154 | U147: 18634 | V147: 308
A148: 146 | B148: 15.5 | C148: 22 | E148: 8543 | F148: 233 | G148: 17.086 | I148: 5122 | J148: 388 | L148: 6820 | M148: 310 | N148: 17.0655 | O148: 34131 | P148: 543 | Q148: 15.51428571 | R148: 1023 | S148: 155 | U148: 18755 | V148: 310
A149: 147 | B149: 15.6 | C149: 22 | E149: 8580 | F149: 234 | G149: 17.16 | I149: 5148 | J149: 390 | L149: 6864 | M149: 312 | N149: 17.16 | O149: 34320 | P149: 546 | Q149: 15.6 | R149: 1030 | S149: 156 | U149: 18876 | V149: 312
A150: 148 | B150: 15.7 | C150: 22 | E150: 8653 | F150: 236 | G150: 17.306 | I150: 5188 | J150: 393 | L150: 6908 | M150: 314 | N150: 17.2855 | O150: 34571 | P150: 550 | Q150: 15.71428571 | R150: 1036 | S150: 157 | U150: 18997 | V150: 314
A151: 149 | B151: 15.8 | C151: 22 | E151: 8690 | F151: 237 | G151: 17.38 | I151: 5214 | J151: 395 | L151: 6952 | M151: 316 | N151: 17.38 | O151: 34760 | P151: 553 | Q151: 15.8 | R151: 1043 | S151: 158 | U151: 19118 | V151: 316
A152: 150 | B152: 15.9 | C152: 23 | E152: 9162 | F152: 239 | G152: 18.324 | I152: 5492 | J152: 398 | L152: 7314 | M152: 318 | N152: 18.3015 | O152: 36603 | P152: 557 | Q152: 15.91428571 | R152: 1097 | S152: 159 | U152: 20114 | V152: 318
A153: 151 | B153: 16 | C153: 23 | E153: 9200 | F153: 240 | G153: 18.4 | I153: 5520 | J153: 400 | L153: 7360 | M153: 320 | N153: 18.4 | O153: 36800 | P153: 560 | Q153: 16 | R153: 1104 | S153: 160 | U153: 20240 | V153: 320
A154: 152 | B154: 16.1 | C154: 23 | E154: 9277 | F154: 242 | G154: 18.554 | I154: 5561 | J154: 403 | L154: 7406 | M154: 322 | N154: 18.5315 | O154: 37063 | P154: 564 | Q154: 16.11428571 | R154: 1111 | S154: 161 | U154: 20367 | V154: 322
A155: 153 | B155: 16.2 | C155: 23 | E155: 9315 | F155: 243 | G155: 18.63 | I155: 5589 | J155: 405 | L155: 7452 | M155: 324 | N155: 18.63 | O155: 37260 | P155: 567 | Q155: 16.2 | R155: 1118 | S155: 162 | U155: 20493 | V155: 324
A156: 154 | B156: 16.3 | C156: 23 | E156: 9392 | F156: 245 | G156: 18.784 | I156: 5630 | J156: 408 | L156: 7498 | M156: 326 | N156: 18.7615 | O156: 37523 | P156: 571 | Q156: 16.31428571 | R156: 1125 | S156: 163 | U156: 20620 | V156: 326
A157: 155 | B157: 16.4 | C157: 23 | E157: 9430 | F157: 246 | G157: 18.86 | I157: 5658 | J157: 410 | L157: 7544 | M157: 328 | N157: 18.86 | O157: 37720 | P157: 574 | Q157: 16.4 | R157: 1132 | S157: 164 | U157: 20746 | V157: 328
A158: 156 | B158: 16.5 | C158: 23 | E158: 9507 | F158: 248 | G158: 19.014 | I158: 5699 | J158: 413 | L158: 7590 | M158: 330 | N158: 18.9915 | O158: 37983 | P158: 578 | Q158: 16.51428571 | R158: 1139 | S158: 165 | U158: 20873 | V158: 330
A159: 157 | B159: 16.6 | C159: 23 | E159: 9545 | F159: 249 | G159: 19.09 | I159: 5727 | J159: 415 | L159: 7636 | M159: 332 | N159: 19.09 | O159: 38180 | P159: 581 | Q159: 16.6 | R159: 1145 | S159: 166 | U159: 20999 | V159: 332
A160: 158 | B160: 16.7 | C160: 23 | E160: 9622 | F160: 251 | G160: 19.244 | I160: 5768 | J160: 418 | L160: 7682 | M160: 334 | N160: 19.2215 | O160: 38443 | P160: 585 | Q160: 16.71428571 | R160: 1152 | S160: 167 | U160: 21126 | V160: 334
A161: 159 | B161: 16.8 | C161: 23 | E161: 9660 | F161: 252 | G161: 19.32 | I161: 5796 | J161: 420 | L161: 7728 | M161: 336 | N161: 19.32 | O161: 38640 | P161: 588 | Q161: 16.8 | R161: 1159 | S161: 168 | U161: 21252 | V161: 336
A162: 160 | B162: 16.9 | C162: 23 | E162: 9737 | F162: 254 | G162: 19.474 | I162: 5837 | J162: 423 | L162: 7774 | M162: 338 | N162: 19.4515 | O162: 38903 | P162: 592 | Q162: 16.91428571 | R162: 1166 | S162: 169 | U162: 21379 | V162: 338
A163: 161 | B163: 17 | C163: 23 | E163: 9775 | F163: 255 | G163: 19.55 | I163: 5865 | J163: 425 | L163: 7820 | M163: 340 | N163: 19.55 | O163: 39100 | P163: 595 | Q163: 17 | R163: 1173 | S163: 170 | U163: 21505 | V163: 340
A164: 162 | B164: 17.1 | C164: 23 | E164: 9852 | F164: 257 | G164: 19.704 | I164: 5906 | J164: 428 | L164: 7866 | M164: 342 | N164: 19.6815 | O164: 39363 | P164: 599 | Q164: 17.11428571 | R164: 1180 | S164: 171 | U164: 21632 | V164: 342
A165: 163 | B165: 17.2 | C165: 23 | E165: 9890 | F165: 258 | G165: 19.78 | I165: 5934 | J165: 430 | L165: 7912 | M165: 344 | N165: 19.78 | O165: 39560 | P165: 602 | Q165: 17.2 | R165: 1187 | S165: 172 | U165: 21758 | V165: 344
A166: 164 | B166: 17.3 | C166: 23 | E166: 9967 | F166: 260 | G166: 19.934 | I166: 5975 | J166: 433 | L166: 7958 | M166: 346 | N166: 19.9115 | O166: 39823 | P166: 606 | Q166: 17.31428571 | R166: 1194 | S166: 173 | U166: 21885 | V166: 346
A167: 165 | B167: 17.4 | C167: 23 | E167: 10005 | F167: 261 | G167: 20.01 | I167: 6003 | J167: 435 | L167: 8004 | M167: 348 | N167: 20.01 | O167: 40020 | P167: 609 | Q167: 17.4 | R167: 1201 | S167: 174 | U167: 22011 | V167: 348
A168: 166 | B168: 17.5 | C168: 23 | E168: 10082 | F168: 263 | G168: 20.164 | I168: 6044 | J168: 438 | L168: 8050 | M168: 350 | N168: 20.1415 | O168: 40283 | P168: 613 | Q168: 17.51428571 | R168: 1208 | S168: 175 | U168: 22138 | V168: 350
A169: 167 | B169: 17.6 | C169: 23 | E169: 10120 | F169: 264 | G169: 20.24 | I169: 6072 | J169: 440 | L169: 8096 | M169: 352 | N169: 20.24 | O169: 40480 | P169: 616 | Q169: 17.6 | R169: 1214 | S169: 176 | U169: 22264 | V169: 352
A170: 168 | B170: 17.7 | C170: 23 | E170: 10197 | F170: 266 | G170: 20.394 | I170: 6113 | J170: 443 | L170: 8142 | M170: 354 | N170: 20.3715 | O170: 40743 | P170: 620 | Q170: 17.71428571 | R170: 1221 | S170: 177 | U170: 22391 | V170: 354
A171: 169 | B171: 17.8 | C171: 23 | E171: 10235 | F171: 267 | G171: 20.47 | I171: 6141 | J171: 445 | L171: 8188 | M171: 356 | N171: 20.47 | O171: 40940 | P171: 623 | Q171: 17.8 | R171: 1228 | S171: 178 | U171: 22517 | V171: 356
A172: 170 | B172: 17.9 | C172: 23 | E172: 10312 | F172: 269 | G172: 20.624 | I172: 6182 | J172: 448 | L172: 8234 | M172: 358 | N172: 20.6015 | O172: 41203 | P172: 627 | Q172: 17.91428571 | R172: 1235 | S172: 179 | U172: 22644 | V172: 358
A173: 171 | B173: 18 | C173: 23 | E173: 10350 | F173: 270 | G173: 20.7 | I173: 6210 | J173: 450 | L173: 8280 | M173: 360 | N173: 20.7 | O173: 41400 | P173: 630 | Q173: 18 | R173: 1242 | S173: 180 | U173: 22770 | V173: 360
A174: 172 | B174: 18.1 | C174: 23 | E174: 10427 | F174: 272 | G174: 20.854 | I174: 6251 | J174: 453 | L174: 8326 | M174: 362 | N174: 20.8315 | O174: 41663 | P174: 634 | Q174: 18.11428571 | R174: 1249 | S174: 181 | U174: 22897 | V174: 362
A175: 173 | B175: 18.2 | C175: 23 | E175: 10465 | F175: 273 | G175: 20.93 | I175: 6279 | J175: 455 | L175: 8372 | M175: 364 | N175: 20.93 | O175: 41860 | P175: 637 | Q175: 18.2 | R175: 1256 | S175: 182 | U175: 23023 | V175: 364
A176: 174 | B176: 18.3 | C176: 23 | E176: 10542 | F176: 275 | G176: 21.084 | I176: 6320 | J176: 458 | L176: 8418 | M176: 366 | N176: 21.0615 | O176: 42123 | P176: 641 | Q176: 18.31428571 | R176: 1263 | S176: 183 | U176: 23150 | V176: 366
A177: 175 | B177: 18.4 | C177: 23 | E177: 10580 | F177: 276 | G177: 21.16 | I177: 6348 | J177: 460 | L177: 8464 | M177: 368 | N177: 21.16 | O177: 42320 | P177: 644 | Q177: 18.4 | R177: 1270 | S177: 184 | U177: 23276 | V177: 368
A178: 176 | B178: 18.5 | C178: 23 | E178: 10657 | F178: 278 | G178: 21.314 | I178: 6389 | J178: 463 | L178: 8510 | M178: 370 | N178: 21.2915 | O178: 42583 | P178: 648 | Q178: 18.51428571 | R178: 1277 | S178: 185 | U178: 23403 | V178: 370
A179: 177 | B179: 18.6 | C179: 23 | E179: 10695 | F179: 279 | G179: 21.39 | I179: 6417 | J179: 465 | L179: 8556 | M179: 372 | N179: 21.39 | O179: 42780 | P179: 651 | Q179: 18.6 | R179: 1283 | S179: 186 | U179: 23529 | V179: 372
A180: 178 | B180: 18.7 | C180: 23 | E180: 10772 | F180: 281 | G180: 21.544 | I180: 6458 | J180: 468 | L180: 8602 | M180: 374 | N180: 21.5215 | O180: 43043 | P180: 655 | Q180: 18.71428571 | R180: 1290 | S180: 187 | U180: 23656 | V180: 374
A181: 179 | B181: 18.8 | C181: 23 | E181: 10810 | F181: 282 | G181: 21.62 | I181: 6486 | J181: 470 | L181: 8648 | M181: 376 | N181: 21.62 | O181: 43240 | P181: 658 | Q181: 18.8 | R181: 1297 | S181: 188 | U181: 23782 | V181: 376
A182: 180 | B182: 18.9 | C182: 23 | E182: 10887 | F182: 284 | G182: 21.774 | I182: 6527 | J182: 473 | L182: 8694 | M182: 378 | N182: 21.7515 | O182: 43503 | P182: 662 | Q182: 18.91428571 | R182: 1304 | S182: 189 | U182: 23909 | V182: 378
A183: 181 | B183: 19 | C183: 23 | E183: 10925 | F183: 285 | G183: 21.85 | I183: 6555 | J183: 475 | L183: 8740 | M183: 380 | N183: 21.85 | O183: 43700 | P183: 665 | Q183: 19 | R183: 1311 | S183: 190 | U183: 24035 | V183: 380
A184: 182 | B184: 19.1 | C184: 23 | E184: 11002 | F184: 287 | G184: 22.004 | I184: 6596 | J184: 478 | L184: 8786 | M184: 382 | N184: 21.9815 | O184: 43963 | P184: 669 | Q184: 19.11428571 | R184: 1318 | S184: 191 | U184: 24162 | V184: 382
A185: 183 | B185: 19.2 | C185: 23 | E185: 11040 | F185: 288 | G185: 22.08 | I185: 6624 | J185: 480 | L185: 8832 | M185: 384 | N185: 22.08 | O185: 44160 | P185: 672 | Q185: 19.2 | R185: 1325 | S185: 192 | U185: 24288 | V185: 384
A186: 184 | B186: 19.3 | C186: 23 | E186: 11117 | F186: 290 | G186: 22.234 | I186: 6665 | J186: 483 | L186: 8878 | M186: 386 | N186: 22.2115 | O186: 44423 | P186: 676 | Q186: 19.31428571 | R186: 1332 | S186: 193 | U186: 24415 | V186: 386
A187: 185 | B187: 19.4 | C187: 23 | E187: 11155 | F187: 291 | G187: 22.31 | I187: 6693 | J187: 485 | L187: 8924 | M187: 388 | N187: 22.31 | O187: 44620 | P187: 679 | Q187: 19.4 | R187: 1339 | S187: 194 | U187: 24541 | V187: 388
A188: 186 | B188: 19.5 | C188: 23 | E188: 11232 | F188: 293 | G188: 22.464 | I188: 6734 | J188: 488 | L188: 8970 | M188: 390 | N188: 22.4415 | O188: 44883 | P188: 683 | Q188: 19.51428571 | R188: 1346 | S188: 195 | U188: 24668 | V188: 390
A189: 187 | B189: 19.6 | C189: 23 | E189: 11270 | F189: 294 | G189: 22.54 | I189: 6762 | J189: 490 | L189: 9016 | M189: 392 | N189: 22.54 | O189: 45080 | P189: 686 | Q189: 19.6 | R189: 1352 | S189: 196 | U189: 24794 | V189: 392
A190: 188 | B190: 19.7 | C190: 23 | E190: 11347 | F190: 296 | G190: 22.694 | I190: 6803 | J190: 493 | L190: 9062 | M190: 394 | N190: 22.6715 | O190: 45343 | P190: 690 | Q190: 19.71428571 | R190: 1359 | S190: 197 | U190: 24921 | V190: 394
A191: 189 | B191: 19.8 | C191: 23 | E191: 11385 | F191: 297 | G191: 22.77 | I191: 6831 | J191: 495 | L191: 9108 | M191: 396 | N191: 22.77 | O191: 45540 | P191: 693 | Q191: 19.8 | R191: 1366 | S191: 198 | U191: 25047 | V191: 396
A192: 190 | B192: 19.9 | C192: 23 | E192: 11462 | F192: 299 | G192: 22.924 | I192: 6872 | J192: 498 | L192: 9154 | M192: 398 | N192: 22.9015 | O192: 45803 | P192: 697 | Q192: 19.91428571 | R192: 1373 | S192: 199 | U192: 25174 | V192: 398
A193: 191 | B193: 20 | C193: 23 | E193: 11500 | F193: 300 | G193: 23 | I193: 6900 | J193: 500 | L193: 9200 | M193: 400 | N193: 23 | O193: 46000 | P193: 700 | Q193: 20 | R193: 1380 | S193: 200 | U193: 25300 | V193: 400
A194: 192 | B194: 20.1 | C194: 23 | E194: 11577 | F194: 302 | G194: 23.154 | I194: 6941 | J194: 503 | L194: 9246 | M194: 402 | N194: 23.1315 | O194: 46263 | P194: 704 | Q194: 20.11428571 | R194: 1387 | S194: 201 | U194: 25427 | V194: 402
A195: 193 | B195: 20.2 | C195: =VLOOKUP(A195,Y$25:Z$31,2) -> 23 | E195: 11615 | F195: 303 | G195: 23.23 | I195: =ROUND(AB$9*J195*$C195,0) -> 6969 | J195: 505 | L195: =ROUND(AB$10*M195*$C195,0) -> 9292 | M195: 404 | N195: 23.23 | O195: =ROUND(AB$13*P195*$C195,0) -> 46460 | P195: 707 | Q195: 20.2 | R195: 1394 | S195: 202 | U195: 25553 | V195: 404
A196: 194 | B196: 20.3 | C196: 23 | E196: =ROUND(AB$8*F196*$C196,0) -> 11692 | F196: 305 | G196: 23.384 | I196: 7010 | J196: 508 | L196: 9338 | M196: 406 | N196: 23.3615 | O196: 46723 | P196: 711 | Q196: 20.31428571 | R196: =ROUND(AB$14*S196*$C196,0) -> 1401 | S196: 203 | U196: =ROUND(AB$15*V196*$C196,0) -> 25680 | V196: 406
A197: 195 | B197: 20.4 | C197: 23 | E197: 11730 | F197: =ROUND(F$3*$B197,0) -> 306 | G197: =E197/E$3 -> 23.46 | I197: 7038 | J197: =ROUND(J$3*$B197,0) -> 510 | L197: 9384 | M197: =ROUND(M$3*$B197,0) -> 408 | N197: =O197/O$3 -> 23.46 | O197: 46920 | P197: =ROUND(P$3*$B197,0) -> 714 | Q197: =P197/P$3 -> 20.4 | R197: 1408 | S197: =ROUND(S$3*$B197,0) -> 204 | U197: 25806 | V197: =ROUND(V$3*$B197,0) -> 408
A198: 196 | B198: 20.5 | C198: 23 | E198: 11807 | F198: 308 | G198: 23.614 | I198: 7079 | J198: 513 | L198: 9430 | M198: 410 | N198: 23.5915 | O198: 47183 | P198: 718 | Q198: 20.51428571 | R198: 1415 | S198: 205 | U198: 25933 | V198: 410
A199: 197 | B199: 20.6 | C199: 23 | E199: 11845 | F199: 309 | G199: 23.69 | I199: 7107 | J199: 515 | L199: 9476 | M199: 412 | N199: 23.69 | O199: 47380 | P199: 721 | Q199: 20.6 | R199: 1421 | S199: 206 | U199: 26059 | V199: 412
A200: 198 | B200: 20.7 | C200: 23 | E200: 11922 | F200: 311 | G200: 23.844 | I200: 7148 | J200: 518 | L200: 9522 | M200: 414 | N200: 23.8215 | O200: 47643 | P200: 725 | Q200: 20.71428571 | R200: 1428 | S200: 207 | U200: 26186 | V200: 414
... 102 more rows
